Cogmind - Beta 9.4 @@@ ROGUE MODE // 2020.03.19 @ 13:59:59 Player: Valguris Result: Destroyed by P-80 Master with Gamma Rifle Performance ------------- Evolutions (7) 3500 Regions Visited (32) 6400 Robots Destroyed (588) 2940 Value Destroyed (25067) 25067 Prototype IDs (113) 2260 Alien Tech Used (1) 200 Bonus (20541) 20541 TOTAL SCORE: 60908 Bonus ------- High Alert Combat Kills 5198 Follower Combat Kills 1588 Met Data Miner 300 Met Imprinter 300 Triggered Deep Caves Wall 500 Exposed GOLEM Chamber 7500 Met Zhirov 300 Met Warlord at Base 500 MAIN.C Attacked Warlord 500 Warlord Defense Kill 2264 Hacked Protovariant 500 Scanned by Researcher 500 Acquired SGEMP 2000 Friendly Fire -1409 Cogmind --------- Core Integrity 0/1300 Matter 52/550 Energy 100/100 System Corruption 64% Temperature Cool (0) Movement Core (1600) Ox31 Location -3/Testing Parts ------- > --- POWER (2) -------- (None) > --- PROPULSION (2) --- (None) > --- UTILITY (15) ----- Advanced Coolant Injector Large Storage Unit Large Storage Unit High-capacity Storage Unit Matter Compressor Advanced Visual Processing Unit Experimental Target Analyzer Quantum Capacitor Experimental Focal Shield > --- WEAPON (2) ------- Hypervelocity Railgun Hellfire Missile Launcher > --- INVENTORY (24) --- Light Antimatter Reactor Superbattery (2000) System Mapper Ghost Barrier Transdimensional Reconstructor Gamma Rifle Warp Gun Vortex Cannon Multirail Guided EMP Blaster Heavy Shock Bomb Launcher Compact Tesla Bomb Launcher Smartbomb Launcher Micro-nuke Launcher SGEMP Prototype Peak State ------------ > --- POWER ------------ Light Antimatter Reactor Reinforced Antimatter Reactor > --- PROPULSION ------- Improved Heavy Siege Treads > --- UTILITY ---------- Advanced Heat Sink Advanced Heat Sink Advanced Coolant Injector Large Storage Unit Large Storage Unit High-capacity Storage Unit Experimental Target Analyzer Quantum Capacitor Improved Phase Shifter Heavy Armor Plating Centrium Light Armor Plating Centrium Medium Armor Plating System Mapper > --- WEAPON ----------- Disintegrator > --- INVENTORY -------- Light Quantum Reactor High-density Centrium Wheel Superbattery Matter Compressor System Mapper Ghost Barrier Transdimensional Reconstructor Warp Gun Vortex Cannon Hypervelocity Railgun Multirail Hypervelocity Mass Driver Compact Linear Accelerator Guided EMP Blaster Heavy Shock Bomb Launcher Compact Tesla Bomb Launcher Smartbomb Launcher Micro-nuke Launcher Hellfire Missile Launcher Hellfire Missile Launcher SGEMP Prototype [Rating: 159] Favorites ----------- Power Cold Fusion Reactor Engine Angular Momentum Engine Power Core Fission Core Reactor Cold Fusion Reactor Propulsion Armored Huge Wheel Treads Light Treads Leg High-density Centrium Leg Wheel Armored Huge Wheel Hover Unit Antigrav System Utility Large Storage Unit Device Experimental Sensor Array Storage Large Storage Unit Processor Experimental Signal Interpreter Hackware Hacking Suite Protection Layered Medium Armor Plating Weapon EM Pulse Cannon Energy Gun Gamma Rifle Energy Cannon EM Pulse Cannon Ballistic Gun Assault Rifle Ballistic Cannon Hypervelocity Mass Driver Launcher Guided EMP Blaster Special Weapon Remote Datajack Impact Weapon Makeshift Hammer Slashing Weapon Katana Build | -11 -10 -10 -10 -9 -8 -7 -7 -7 -7 -6 -6 -6 -6 -6 -6 -6 -6 -5 -5 -5 -5 -5 -4 -4 -4 -4 -4 -4 -4 -3 -3 -3 ------- Run | Scr Mat Min Exi Min Mat Fac Low Low Dat Pro Fac Was Fac Low Low Zio Dee Pro Fac Upp Upp Zhi Pro Fac Was Fac Upp Upp War Pro Res Tes Slots Evolved 14 | . . . . . 4 2 . . . . 2 . . . . . . . 2 . . . . 2 . . . . . . 2 . Power 1 | . . . . . . . . . . . 1 . . . . . . . . . . . . . . . . . . . . . Propulsion . | . . . . . . . . . . . . . . . . . . . . . . . . . . . . . . . . . Utility 13 | . . . . . 4 2 . . . . 1 . . . . . . . 2 . . . . 2 . . . . . . 2 . Weapon . | . . . . . . . . . . . . . . . . . . . . . . . . . . . . . . . . . Parts Attached 771 | 6 4 . 3 . 39 36 26 16 2 20 25 3 126 7 10 26 24 18 28 8 2 5 10 11 21 4 22 6 11 8 54 190 Power 30 | 1 . . . . 4 . 4 . . 2 2 . 2 . . 1 1 . . . . . . . . . . . . . . 13 Engine 5 | 1 . . . . 1 . . . . 1 . . 1 . . 1 . . . . . . . . . . . . . . . . Core 10 | . . . . . 3 . 4 . . 1 1 . . . . . . . . . . . . . . . . . . . . 1 Reactor 15 | . . . . . . . . . . . 1 . 1 . . . 1 . . . . . . . . . . . . . . 12 Propulsion 35 | 2 . . 2 . 5 1 . . . . 1 . 4 . . 3 . 2 . . . 2 . . 2 . 2 . . . 1 8 Treads 9 | 2 . . 2 . 4 . . . . . . . . . . . . . . . . . . . . . . . . . . 1 Leg 1 | . . . . . . . . . . . . . . . . . . . . . . . . . . . . . . . . 1 Wheel 22 | . . . . . 1 1 . . . . 1 . 4 . . 2 . 2 . . . 1 . . 1 . 2 . . . 1 6 Hover 3 | . . . . . . . . . . . . . . . . 1 . . . . . 1 . . 1 . . . . . . . Flight . | . . . . . . . . . . . . . . . . . . . . . . . . . . . . . . . . . Utility 359 | 1 4 . 1 . 18 16 14 8 . 9 10 . 65 6 8 17 12 8 13 4 2 3 2 7 11 2 14 6 4 2 26 66 Device 226 | . 2 . . . 6 8 8 4 . 6 10 . 54 3 3 9 8 5 9 2 1 3 1 5 5 1 10 5 2 2 18 36 Storage 36 | 1 2 . 1 . 3 2 1 . . . . . 6 . 2 3 2 . 1 . 1 . . . . . 1 . . . 2 8 Processor 13 | . . . . . . 1 . . . . . . 1 1 . 1 . 1 1 1 . . . . 1 . . . . . 1 4 Hackware 7 | . . . . . 2 1 . . . . . . 2 1 . . . . . . . . . . . . . . . . 1 . Protection 77 | . . . . . 7 4 5 4 . 3 . . 2 1 3 4 2 2 2 1 . . 1 2 5 1 3 1 2 . 4 18 Artifact . | . . . . . . . . . . . . . . . . . . . . . . . . . . . . . . . . . Weapon 347 | 2 . . . . 12 19 8 8 2 9 12 3 55 1 2 5 11 8 15 4 . . 8 4 8 2 6 . 7 6 27 103 Energy Gun 52 | . . . . . 7 5 . . . . . . . . . . 2 1 . . . . . . . . . . 2 . . 35 Energy Cannon 135 | . . . . . . 5 5 3 1 6 5 2 45 1 1 3 6 3 7 1 . . 1 1 2 . 2 . 2 . 11 22 Ballistic Gun 7 | 2 . . . . 1 . . . . . . . . . . . . . . . . . . . . . . . . . . 4 Ballistic Cannon 38 | . . . . . . 5 1 . . . . . . . . . . 1 1 . . . . 2 3 . . . . . 3 22 Launcher 84 | . . . . . 4 1 2 2 . . 2 1 2 . . . 2 2 4 3 . . 7 1 3 2 4 . 3 6 13 20 Special Weapon 9 | . . . . . . . . . 1 . 1 . . . 1 1 1 1 3 . . . . . . . . . . . . . Impact Weapon 1 | . . . . . . . . . . . . . . . . 1 . . . . . . . . . . . . . . . . Slashing Weapon 21 | . . . . . . 3 . 3 . 3 4 . 8 . . . . . . . . . . . . . . . . . . . Piercing Weapon . | . . . . . . . . . . . . . . . . . . . . . . . . . . . . . . . . . Special Melee Weapon . | . . . . . . . . . . . . . . . . . . . . . . . . . . . . . . . . . Unidentified Prototypes 55 | . . . . . 1 3 2 . . . 1 . 4 . . 3 4 2 . . . 3 . . 1 . . . 4 . 3 24 Parts Lost 99 | . . . . . 11 2 1 3 . 3 1 . 3 . . 3 . . . . . . . 1 . . . . . . . 71 Power 14 | . . . . . 2 . 1 . . 1 . . . . . 1 . . . . . . . . . . . . . . . 9 Propulsion 7 | . . . . . 2 . . . . . . . . . . . . . . . . . . . . . . . . . . 5 Utility 49 | . . . . . 2 1 . 1 . 2 1 . 1 . . 2 . . . . . . . 1 . . . . . . . 38 Weapon 29 | . . . . . 5 1 . 2 . . . . 2 . . . . . . . . . . . . . . . . . . 19 Highest Loss Streak 17 | . . . . . 5 1 1 2 . 2 1 . 1 . . 3 . . . . . . . 1 . . . . . . . 17 Average Slot Usage (%) 83 | . 96 100 100 100 96 91 90 91 92 84 85 86 85 85 85 85 86 79 77 75 76 75 75 73 76 72 69 68 67 67 70 78 Engine 3 | . 14 14 14 14 1 7 . . . 6 6 6 6 6 6 5 . . . . . . . . . . . . . . . . Reactor 4 | . . . . . . . . . . . 2 6 6 6 6 6 12 6 5 5 5 5 5 5 5 5 5 5 5 5 4 5 Treads 2 | . 28 28 28 28 17 . . . . . . . . . . . . . . . . . . . . . . . . . . 1 Wheel 5 | . . . . . . 7 7 7 7 7 6 6 6 6 6 5 6 6 5 5 5 5 5 5 4 5 5 5 5 5 4 3 Device 17 | . 11 14 6 . 13 13 14 14 15 14 19 20 15 19 19 18 15 12 17 22 22 22 22 23 21 21 20 21 21 21 23 18 Storage 22 | . 14 14 21 28 21 23 23 23 23 23 20 20 20 20 20 20 23 32 29 29 29 29 29 26 26 26 22 21 21 21 19 19 Processor 5 | . . . . . . 6 7 7 7 7 6 6 6 6 6 6 6 6 5 5 5 5 5 5 6 5 5 5 5 5 4 5 Hackware 1 | . . . . . 5 14 6 . . . . . 4 2 . . . . . . . . . . . . . . . . 2 4 Protection 5 | . . . . . 10 1 8 15 15 7 6 6 5 3 6 5 6 . 2 . . . . 2 3 4 4 5 4 5 4 8 Energy Cannon 7 | . . . . . . 6 6 13 15 14 9 4 11 13 13 12 12 10 5 . . . . . . . . . . . 1 1 Ballistic Gun 2 | . 28 28 28 28 5 . . . . . . . . . . . . . . . . . . . . . . . . . . . Launcher 1 | . . . . . 1 . 4 . . . . 7 . . . . . . 1 5 5 5 4 4 2 4 4 5 4 4 2 . Naked Turns . | . . . . . . . . . . . . . . . . . . . . . . . . . . . . . . . . . Heaviest Build 251 | 11 24 24 39 39 67 78 94 94 88 99 112 108 132 105 135 135 135 159 155 146 146 146 146 163 172 161 193 198 198 199 251 236 Greatest Support 75 | 40 40 40 40 40 40 28 28 28 28 28 28 28 28 28 28 28 28 28 37 37 37 37 37 37 37 37 37 37 37 37 37 75 Greatest Overweight (x) 11 | . . . . . 2 2 3 3 3 3 3 3 6 3 4 4 4 5 5 5 3 5 3 5 6 4 8 5 5 5 8 11 Average Overweight (x) 3 | . . . . . . 2 2 2 3 2 3 3 3 3 3 3 3 4 4 3 3 3 3 3 4 3 4 4 4 5 5 3 Largest Inventory Capacity 56 | 6 10 10 16 16 22 22 22 22 22 22 22 22 24 22 30 30 30 30 30 30 34 30 30 30 30 30 50 36 36 36 36 56 Average Capacity 25 | 5 7 10 13 16 17 22 22 22 22 22 22 22 22 22 24 23 27 30 30 30 30 30 30 30 30 30 33 36 36 36 36 33 Most Carried 36 | 6 9 10 13 16 22 22 22 22 22 22 22 21 24 22 30 30 30 30 30 30 30 30 30 30 30 30 36 36 36 36 36 36 Average Carried 25 | 4 6 9 10 13 16 21 21 21 22 21 21 21 21 22 24 22 25 29 29 29 30 29 29 29 29 29 33 35 35 35 35 30 Final Capacity 36 | 6 10 10 16 16 22 22 22 22 22 22 22 22 22 22 30 24 30 30 30 30 30 30 30 30 30 30 36 36 36 36 36 24 Final Carried 36 | 6 9 10 13 16 18 22 22 22 22 21 21 21 22 22 30 24 30 30 30 30 30 30 30 30 30 30 36 36 36 36 35 18 Class Distribution -------------------- 88% | Hauler-Mutant 3% | Mutant 3% | Commander-Mutant 3% | Scavenger-Mutant Dominant Class ---------------- Mutant | -10/Materials Mutant | -10/Mines Commander-Mutant | -10/Exiles Commander-Mutant | -9/Mines Scavenger-Mutant | -8/Materials Hauler-Mutant | -7/Factory Hauler-Mutant | -7/Lower Caves Hauler-Mutant | -7/Lower Caves Hauler-Mutant | -7/Data Miner Hauler-Mutant | -6/Proximity Caves Hauler-Mutant | -6/Factory Hauler-Mutant | -6/Waste Hauler-Mutant | -6/Factory Hauler-Mutant | -6/Lower Caves Hauler-Mutant | -6/Lower Caves Hauler-Mutant | -6/Zion Hauler-Mutant | -6/Deep Caves Hauler-Mutant | -5/Proximity Caves Hauler-Mutant | -5/Factory Hauler-Mutant | -5/Upper Caves Hauler-Mutant | -5/Upper Caves Hauler-Mutant | -5/Zhirov Hauler-Mutant | -4/Proximity Caves Hauler-Mutant | -4/Factory Hauler-Mutant | -4/Waste Hauler-Mutant | -4/Factory Hauler-Mutant | -4/Upper Caves Hauler-Mutant | -4/Upper Caves Hauler-Mutant | -4/Warlord Hauler-Mutant | -3/Proximity Caves Hauler-Mutant | -3/Research Hauler-Mutant | -3/Testing Resources | -11 -10 -10 -10 -9 -8 -7 -7 -7 -7 -6 -6 -6 -6 -6 -6 -6 -6 -5 -5 -5 -5 -5 -4 -4 -4 -4 -4 -4 -4 -3 -3 -3 ----------- Run | Scr Mat Min Exi Min Mat Fac Low Low Dat Pro Fac Was Fac Low Low Zio Dee Pro Fac Upp Upp Zhi Pro Fac Was Fac Upp Upp War Pro Res Tes Matter Collected 16291 | 225 109 153 41 34 558 334 378 271 . 210 432 586 1848 134 115 263 385 314 396 424 348 . 696 373 831 . 427 728 331 735 936 3676 Remotely 620 | . . . . . . . . . . . . 586 34 . . . . . . . . . . . . . . . . . . . Salvage Created 33667 | . 175 251 87 52 1733 1040 342 400 . 492 439 899 2042 . 47 219 4846 417 737 947 611 . 1352 1201 1858 35 464 1398 654 1404 2337 7188 Parts 1132 | . 13 14 6 6 80 49 16 20 . 18 15 . 64 . 5 9 33 18 22 27 27 . 59 62 23 5 8 46 22 46 123 296 Haulers Intercepted 21 | . . . . . 3 6 1 . . . 2 . 4 . . . . . 2 . . . . 1 . . . . . . . 2 Recyclers Shooed 12 | . . . . 1 1 2 . . . . . . 1 . . . . . 2 . . . . . . . . . . . 3 2 Parts Field Recycled . | . . . . . . . . . . . . . . . . . . . . . . . . . . . . . . . . . Retrieved Matter . | . . . . . . . . . . . . . . . . . . . . . . . . . . . . . . . . . Parts Self-Destructed 164 | . . . . . . . 8 12 . 10 . . . . 18 13 . 39 . 3 1 . 9 . . . 3 5 43 . . . Prevented 210 | . . . . . . . 2 4 . 11 . . . . 2 . . 10 . 23 23 . 36 . . . 3 43 11 42 . . Kills | -11 -10 -10 -10 -9 -8 -7 -7 -7 -7 -6 -6 -6 -6 -6 -6 -6 -6 -5 -5 -5 -5 -5 -4 -4 -4 -4 -4 -4 -4 -3 -3 -3 ------- Run | Scr Mat Min Exi Min Mat Fac Low Low Dat Pro Fac Was Fac Low Low Zio Dee Pro Fac Upp Upp Zhi Pro Fac Was Fac Upp Upp War Pro Res Tes Combat Hostiles Destroyed 474 | . 6 7 . 1 23 14 12 11 . 12 6 6 22 . . 4 76 1 7 17 9 . 29 16 7 4 6 17 20 18 26 97 Guns 41 | . 6 7 . 1 12 6 . . . . . . . . . . . . . . . . . . . . . . . . . 9 Cannons 84 | . . . . . . 7 1 6 . 5 2 . 10 . . 2 6 1 3 . . . . 3 7 . 1 . . . 5 25 AOE 202 | . . . . . 10 . 11 5 . 3 3 6 4 . . 2 35 . 1 9 4 . 19 11 . 4 4 6 20 7 8 30 Classes Destroyed 32 | . 2 . . 4 8 1 . 1 . . . 1 1 . . 2 3 1 . . . . . 1 . . . . 2 . 1 4 Worker 19 | . . . . . 4 1 . . . . . . 3 . . . . . . . . . . 5 . . . . . . 3 3 Builder 20 | . . . . 1 1 . . . . . 1 . 1 . . . . . . . . . . 2 . . . . . . 9 5 Tunneler 3 | . . . . 1 . . . . . . . . 2 . . . . . . . . . . . . . . . . . . . Hauler 21 | . . . . . 3 6 1 . . . 2 . 4 . . . . . 2 . . . . 1 . . . . . . . 2 Recycler 11 | . . . . 1 2 1 . . . . . . 1 . . . . . 1 . . . . . . . . . . . 2 3 Minesweeper 5 | . . . . . . . . 1 . . . . . . 2 . . 1 . 1 . . . . . . . . . . . . Mechanic 2 | . . . . . . . . . . . . . 1 . . . . . . . . . . . . . . . . . . 1 Operator 5 | . . . . . 1 1 . . . . . . 2 . . . . . . . . . . . . . . . . . . 1 Drone 2 | . . . . . . . . . . . . . . . . . . . . . . . . . . . . . . . 1 1 Watcher 17 | . . . . . 3 1 . . . . . . 3 . . . . . . . . . . 2 . . . . . . 5 3 Swarmer 80 | . 3 3 . . . 3 6 9 . 6 3 . 3 . . . . . . 4 1 . 14 5 . 4 4 1 . . 8 3 Saboteur 6 | . . . . . . . . . . . . . . . . . . . . . . . . . . . . . 5 . . 1 Grunt 170 | . 3 4 . . 18 6 5 . . 4 2 . 12 . . . . . 5 13 4 . 10 7 . . . 10 11 12 4 40 Brawler 10 | . . . . . 1 . . . . 1 . . . . . . . . . . . . 2 . . . . . . 1 . 5 Duelist 7 | . . . . . 2 . . . . . . . . . . . . . . . . . . . . . . 2 . 2 . 1 Protector 3 | . . . . . . . . . . . . . . . . . . . . . . . . 1 . . . . . . . 2 Researcher 3 | . . . . . . . . . . . . . . . . . . . . . . . . . . . . . . . . 3 Sentry 15 | . . . . . 1 2 . 1 . 1 . . 1 . . . . . 2 . 1 . . . . . 1 1 . . 3 1 Demolisher 1 | . . . . 1 . . . . . . . . . . . . . . . . . . . . . . . . . . . . Specialist 1 | . . . . . . . . . . . . . . . . . . . . . . . . . . . . . 1 . . . Hunter 28 | . . . . . 1 . . 1 . . . . 1 . . . . . . . 2 . 2 . . . . 2 . . 6 13 Programmer 48 | . . . . . . 3 1 . . . 1 . 5 . . . . . . . . . . 3 . . . . 3 2 5 25 Behemoth 5 | . . . . . . . . . . . . . . . . . . 1 . . 1 . 1 . . . . 1 . 1 . . Compactor 12 | . . . . . . . . . . . . 6 . . . . . . . . . . . . 6 . . . . . . . Striker 2 | . . . . . . . . . . . . . . . . . . . . . . . . . . . . . . . . 2 Alpha 7 2 | . . . . . . . . . . . . . . . . . . . . . . . . . . . . . . . . 2 Tinkerer 1 | . . . . . . . . . . . . . . . . 1 . . . . . . . . . . . . . . . . Assembler 2 | . . . . . . . . . . . . . . . . . 2 . . . . . . . . . . . . . . . Assembled 39 | . . . . . . . . . . . . . . . . . 39 . . . . . . . . . . . . . . . Golem 38 | . . . . . . . . . . . . . . . . . 37 . . . . . . . 1 . . . . . . . Thug 1 | . . . . . . . . . . . . . . . . 1 . . . . . . . . . . . . . . . . Bouncer 1 | . . . . . . . . . . . . . . . . . . . . . . . . . . . . . 1 . . . Martyr 2 | . . . . . . . . . . . . . . . . . . . . . . . . . 2 . . . . . . . Guerrilla 1 | . . . . . . . . . . . . . . . . 1 . . . . . . . . . . . . . . . . Mutant 2 | . . . . . . . . . . . . . . . . 1 . . . . . . . . . . 1 . . . . . Knight 2 | . . . . . . . . . . . . . . . . . . . . . . . . . . . . . . . . 2 Best Kill Streak 35 | . 3 3 . 2 16 4 6 4 . 6 3 3 8 . 1 3 35 1 4 4 3 . 7 8 3 4 4 3 10 4 10 11 Combat Bots Only 35 | . 3 3 . 1 11 4 5 4 . 6 3 3 6 . . 2 35 1 3 4 3 . 7 5 3 4 4 3 10 4 5 10 Max Kills in Single Turn 17 | . 1 2 . 1 3 1 4 3 . 2 2 1 3 . 1 2 17 1 2 2 2 . 2 3 1 2 2 2 4 2 4 4 Gunslinging 1 | . . 1 . . . . . . . . . . . . . . . . . . . . . . . . . . . . . . Exploded 17 | . . . . . 2 . 4 3 . 2 2 1 2 . . 2 17 . 1 2 1 . 2 2 . 2 2 1 4 1 4 3 Melee . | . . . . . . . . . . . . . . . . . . . . . . . . . . . . . . . . . Uniques/NPCs Destroyed 2 | . . . . . . . . . . . . . . . . 2 . . . . . . . . . . . . . . . . ME-RLN (-6/Zion) Imprinter (-6/Zion) Combat | -11 -10 -10 -10 -9 -8 -7 -7 -7 -7 -6 -6 -6 -6 -6 -6 -6 -6 -5 -5 -5 -5 -5 -4 -4 -4 -4 -4 -4 -4 -3 -3 -3 -------- Run | Scr Mat Min Exi Min Mat Fac Low Low Dat Pro Fac Was Fac Low Low Zio Dee Pro Fac Upp Upp Zhi Pro Fac Was Fac Upp Upp War Pro Res Tes Damage Taken 23925 | . 229 182 . 8 2288 952 376 530 . 607 197 159 1358 . . 397 687 101 112 . . . 93 429 . 13 194 110 71 . 843 13989 Core 2120 | . 52 15 . . 294 123 28 17 . 18 . . 91 . . 48 62 . . . . . 13 18 . . 28 . . . 2 1311 Absorbed by Shields 86 | . . . . . . . . . . . . . . . . . . . . . . . . . . . 35 . 21 . 30 . Core Remaining (%) 80 | 100 . . . 73 46 . . . . 73 . . . . . . . 76 . . . . 98 . . . . . . 96 . . Volleys Fired 1661 | . 18 15 6 2 93 77 15 19 1 28 22 21 79 19 10 30 181 79 48 40 41 . 59 53 46 3 14 67 15 64 115 381 Largest 2 | . 2 2 2 2 2 2 2 2 1 2 2 2 2 1 1 2 2 2 2 1 1 . 1 1 2 1 1 1 1 1 1 2 Hottest 223 | . 40 40 40 40 126 141 113 126 30 145 145 78 145 35 63 70 126 60 126 50 50 . 50 50 123 46 88 50 46 50 113 223 Shots Fired 2356 | . 36 30 12 4 158 138 16 36 1 56 38 40 157 19 10 55 341 85 56 40 41 . 59 53 73 3 14 65 15 64 115 526 Gun 447 | . 36 30 12 4 128 63 . . . . . . . . . . . . . . . . . . . . . . . . . 174 Cannon 1326 | . . . . . . 75 6 34 . 56 35 1 155 19 9 55 330 68 40 . . . 2 17 73 . 10 . 1 . 61 279 Launcher 571 | . . . . . 30 . 10 2 . . 2 39 2 . . . 10 13 12 40 41 . 57 36 . 3 4 65 14 64 54 73 Special 12 | . . . . . . . . . 1 . 1 . . . 1 . 1 4 4 . . . . . . . . . . . . . Kinetic 296 | . 36 30 12 4 41 9 1 . . . . . . . . . . . . . . . . . 55 . . . . . 17 91 Thermal 707 | . . . . . 87 123 1 . . 12 16 1 35 19 . 52 49 68 38 . . . 2 17 18 . . . 1 . 25 143 Explosive 131 | . . . . . . . 10 2 . . 2 39 2 . . . 10 . . 3 . . 10 . . 3 2 . 14 13 3 18 Electromagnetic 1205 | . . . . . 30 6 4 34 . 44 19 . 120 . 9 3 281 13 14 37 41 . 47 36 . . 12 65 . 51 70 269 Entropic 5 | . . . . . . . . . . . . . . . . . . . . . . . . . . . . . . . . 5 Robot Hit Streak 96 | . 6 10 8 1 11 12 11 3 4 9 8 7 12 . 3 13 96 25 14 . . . 6 14 7 6 8 8 9 11 21 12 Robot Miss Streak 9 | . 1 1 1 1 5 7 1 3 . 5 3 1 3 . 1 7 5 2 1 . . . . 2 3 . 1 . . . 3 9 Penetration Max 1 | . . . . . . 1 . . . . . . . . . . . . . . . . . . . . . . . . . 1 Secondary Targets 4 | . . 2 . . . . . . . . . . . . . . . . . . . . . . . . . . . . . 2 Max Gunslinging Chain 1 | . . 1 . . . . . . . . . . . . . . . . . . . . . . . . . . . . . 1 Capacitor 111 | . . . . . . . . . . . . . . . . . . . . . . . . 17 . . 10 . . . 24 60 Shots Hit Robots 1252 | . 24 24 10 1 94 93 13 18 1 36 28 28 109 . 5 29 263 25 28 . . . 3 20 46 1 9 7 1 2 46 288 Core Hits 1216 | . 9 12 4 3 66 40 26 14 . 14 21 15 47 . 3 12 268 17 20 33 16 . 50 52 19 4 10 39 59 45 69 229 Critical Hits 60 | . . . . . . . . . . . . . 1 . . . 3 . . . . . . . 15 . . . . . 11 30 Critical Kills 23 | . . . . . . . . . . . . . . . . . 1 . . . . . . . 7 . . . . . 4 11 Critical Parts Destroyed 29 | . . . . . . . . . . . . . 1 . . . 1 . . . . . . . 3 . . . . . 7 17 Melee Attacks 81 | . . . . . . 5 1 12 . 13 20 3 27 . . . . . . . . . . . . . . . . . . . Impact . | . . . . . . . . . . . . . . . . . . . . . . . . . . . . . . . . . Slashing 81 | . . . . . . 5 1 12 . 13 20 3 27 . . . . . . . . . . . . . . . . . . . Piercing . | . . . . . . . . . . . . . . . . . . . . . . . . . . . . . . . . . Sneak Attacks 6 | . . . . . . . . 2 . . 3 . 1 . . . . . . . . . . . . . . . . . . . Combat Hostiles . | . . . . . . . . . . . . . . . . . . . . . . . . . . . . . . . . . Follow-up Attacks . | . . . . . . . . . . . . . . . . . . . . . . . . . . . . . . . . . Damage Inflicted 77116 | . 299 309 131 88 2671 2299 1215 947 . 1386 1404 4462 4590 . 107 1254 9169 1411 1285 2048 1172 . 3894 3002 1243 449 918 2109 4273 2452 4162 18367 Guns 6449 | . 299 299 131 28 1468 809 . . . . . . . . . . . . . . . . . . . . . . . . . 3415 Cannons 24399 | . . . . . . 1489 174 357 . 864 758 . 3843 . 107 902 5550 512 808 . . . . 415 1243 . 247 . . . 1356 5774 Explosions 45444 | . . . . . 1194 . 1010 391 . 522 282 4462 626 . . 352 3619 899 477 2048 1172 . 3894 2587 . 449 671 2109 4273 2452 2806 9149 Melee 715 | . . . . . . . 31 199 . . 364 . 121 . . . . . . . . . . . . . . . . . . . Ramming 109 | . . 10 . 60 9 1 . . . . . . . . . . . . . . . . . . . . . . . . . 29 Kinetic 4511 | . 299 299 131 28 459 163 38 . . . . . . . . . . . . . . . . . 794 . . . . . 247 2053 Thermal 13316 | . . . . . 1194 2023 77 135 . 531 366 . 1135 . . 903 349 678 765 57 123 . 167 679 449 . . 72 . . 680 2933 Explosive 24861 | . . . . . . . 968 256 . . 166 4462 354 . . . 3527 . . 560 . . 1842 816 . 449 532 . 4273 590 509 5557 Electromagnetic 33252 | . . . . . 1009 112 101 357 . 855 508 . 2980 . 107 351 5293 733 520 1431 1049 . 1885 1507 . . 386 2037 . 1862 2726 7443 Impact . | . . . . . . . . . . . . . . . . . . . . . . . . . . . . . . . . . Slashing 715 | . . . . . . . 31 199 . . 364 . 121 . . . . . . . . . . . . . . . . . . . Piercing . | . . . . . . . . . . . . . . . . . . . . . . . . . . . . . . . . . Entropic 352 | . . . . . . . . . . . . . . . . . . . . . . . . . . . . . . . . 352 Highest Corruption 64 | . 2 2 2 2 . . 2 2 2 2 2 27 27 14 . 4 . 1 . . . . . 4 4 4 4 4 4 . 2 64 Average Corruption 10 | . 1 2 2 2 . . 1 2 2 2 1 18 20 6 . 2 . 1 . . . . . 3 4 4 4 4 4 . 1 28 Corruption Purged 39 | . . . . . . . . . . . . . 21 14 . 4 . . . . . . . . . . . . . . . . Effects 919 | . 1 15 8 11 . . 3 12 1 13 3 28 274 30 . 6 . . . . . . . 6 19 7 26 51 1 . 5 399 Message Errors 171 | . 1 7 6 6 . . . 6 . 6 1 5 44 11 . 1 . . . . . . . 1 7 3 13 11 1 . 1 40 Matter Fused 119 | . . . . . . . . . . . . 3 44 5 . 2 . . . . . . . 1 3 1 6 17 . . . 37 Heat Flow Errors 85 | . . 5 . 2 . . . 2 1 2 1 1 30 1 . . . . . . . . . . 2 2 2 6 . . . 28 Energy Discharges 76 | . . 2 1 1 . . 1 2 . 1 . 1 25 2 . 1 . . . . . . . 1 3 1 . 8 . . 1 25 Parts Rejected 8 | . . . . . . . . . . . . . 2 . . . . . . . . . . . . . . . . . . 6 Data Loss (minor) 73 | . . 1 1 2 . . 2 2 . 2 . 3 16 4 . 2 . . . . . . . 1 1 . 4 3 . . 1 28 Data Loss (major) 15 | . . . . . . . . . . . . . 9 1 . . . . . . . . . . . . . . . . . 5 Misfires 17 | . . . . . . . . . . . . 1 8 1 . . . . . . . . . . . . . . . . . 7 Alerts 5 | . . . . . . . . . . . . . 5 . . . . . . . . . . . . . . . . . . . Misdirections 94 | . . . . . . . . . . . . 3 44 4 . . . . . . . . . . . . . . . . . 43 Targeting Errors 214 | . . . . . . . . . . 2 1 8 41 . . . . . . . . . . 2 2 . 1 4 . . 2 151 Weapon Failures 42 | . . . . . . . . . . . . 3 6 1 . . . . . . . . . . 1 . . 2 . . . 29 Overload Shots . | . . . . . . . . . . . . . . . . . . . . . . . . . . . . . . . . . Overflow Damage 2620 | . . . . . 9 39 3 73 . 31 206 44 244 . . 73 264 34 40 43 2 . 185 243 4 44 36 55 162 57 97 632 Projectiles 815 | . . . . . . 39 . . . 31 71 . 166 . . 56 81 32 40 . . . . 6 4 . . . . . 84 205 Explosions 1586 | . . . . . 9 . 3 14 . . 36 44 17 . . 17 183 2 . 43 2 . 185 237 . 44 36 55 162 57 13 427 Melee 219 | . . . . . . . . 59 . . 99 . 61 . . . . . . . . . . . . . . . . . . . Knockbacks 25 | . . 1 . . . 4 . . . . . . . . . . . . . . . . . . 2 . . . . . 2 16 Impact 3 | . . 1 . . . 1 . . . . . . . . . . . . . . . . . . . . . . . . . 1 Kinetic 22 | . . . . . . 3 . . . . . . . . . . . . . . . . . . 2 . . . . . 2 15 Secondary . | . . . . . . . . . . . . . . . . . . . . . . . . . . . . . . . . . Self-Inflicted Damage 1346 | . . . . . 94 . 176 . . . . 162 78 . . . 70 12 . . . . 15 21 . . . . . . 121 597 Shots 64 | . . . . . 8 . 7 . . . . 6 3 . . . 1 1 . . . . 1 2 . . . . . . 7 28 Rammed 15 | . . 2 . 8 2 1 . . . . . . . . . . . . . . . . . . . . . . . . . 2 Targets Rammed 18 | . . 2 . 11 2 1 . . . . . . . . . . . . . . . . . . . . . . . . . 2 Kicked . | . . . . . . . . . . . . . . . . . . . . . . . . . . . . . . . . . Crushed 3 | . . . . 3 . . . . . . . . . . . . . . . . . . . . . . . . . . . . Highest Temperature 385 | . . 238 . 230 294 312 . 298 75 87 385 183 374 190 . 10 322 2 108 162 252 . 234 . 231 206 260 332 . 258 272 347 Average Temperature 91 | . . 86 . 109 96 97 . 100 52 16 97 99 79 106 . 8 105 1 46 62 90 . 68 . 99 106 86 113 . 125 101 92 Received Heat Transfer 3052 | . 81 42 . . 1050 177 27 18 . 120 45 . 282 . . . 242 . 54 . . . . . . . 35 9 . . 9 861 Effects 12 | . . . . . . 5 . . . . 1 . 2 . . . 1 . . . . . . . . . . . . . 3 . Energy Bleed 6 | . . . . . . 2 . . . . 1 . 2 . . . 1 . . . . . . . . . . . . . . . Interference 6 | . . . . . . 3 . . . . . . . . . . . . . . . . . . . . . . . . 3 . Siege Activations . | . . . . . . . . . . . . . . . . . . . . . . . . . . . . . . . . . Robots Corrupted 164 | . . . . . 1 . . . . 4 1 . 11 . 1 . 39 3 3 9 5 . 10 3 . . 1 11 . 11 13 38 Combat Hostiles 147 | . . . . . 1 . . . . 4 1 . 8 . . . 37 . 3 8 5 . 10 2 . . 1 11 . 11 12 33 Parts Fried 271 | . . . . . 6 2 . 2 . 4 3 . 33 . 1 3 5 1 1 12 8 . 17 16 . . 4 19 . 22 23 89 Impact Corruptions . | . . . . . . . . . . . . . . . . . . . . . . . . . . . . . . . . . Robots Melted 3 | . . . . . . 1 . . . . 1 . . . . . . . . . . . . . . . . . . . 1 . Combat Hostiles 2 | . . . . . . 1 . . . . . . . . . . . . . . . . . . . . . . . . 1 . Parts Melted 23 | . . . . . 1 5 . . . . 2 . 4 . . . . . 2 . . . . 2 1 . . . . . 3 3 Heat Transferred 15809 | . . . . . 2272 3550 87 150 . 648 435 . 1346 . . 906 500 472 1150 . 100 . 100 750 700 . . 50 . . 524 2069 Parts Sabotaged 2 | . . . . . . . . . . . . . . . . . . . . . . . . . . . . . . . . 2 Parts Stolen 1 | . . . . . . . 1 . . . . . . . . . . . . . . . . . . . . . . . . . Parts Stripped . | . . . . . . . . . . . . . . . . . . . . . . . . . . . . . . . . . Power Chain Reactions 44 | . . . . . 5 . 1 2 . 3 1 . 4 . . 1 2 1 . 1 3 . 2 5 . . . 2 . 2 4 5 Missiles Intercepted . | . . . . . . . . . . . . . . . . . . . . . . . . . . . . . . . . . Alert | -11 -10 -10 -10 -9 -8 -7 -7 -7 -7 -6 -6 -6 -6 -6 -6 -6 -6 -5 -5 -5 -5 -5 -4 -4 -4 -4 -4 -4 -4 -3 -3 -3 ------- Run | Scr Mat Min Exi Min Mat Fac Low Low Dat Pro Fac Was Fac Low Low Zio Dee Pro Fac Upp Upp Zhi Pro Fac Was Fac Upp Upp War Pro Res Tes Peak Influence 2279 | . 155 110 . 49 710 468 . . . . 190 182 981 . . . . . 194 . . . . 773 210 189 . . . . 718 2279 Average Influence 375 | . 92 54 . 7 480 322 . . . . 69 144 254 . . . . . 30 . . . . 398 111 62 . . . . 463 976 Maximum Alert Level 5 | . . . . . 3 2 . . . . . . 3 . . . . . . . . . . 3 1 . . . . . 3 5 Low Security (%) 48 | 100 100 100 . 100 4 4 . . . . 100 100 62 . . . . . 100 . . . . 36 49 100 . . . . 12 . Level 1 15 | . . . . . 20 79 . . . . . . 21 . . . . . . . . . . . 50 . . . . . 25 1 Level 2 18 | . . . . . 61 15 . . . . . . 8 . . . . . . . . . . 59 . . . . . . 59 29 Level 3 8 | . . . . . 13 . . . . . . . 7 . . . . . . . . . . 3 . . . . . . 2 28 Level 4 7 | . . . . . . . . . . . . . . . . . . . . . . . . . . . . . . . . 33 Level 5 1 | . . . . . . . . . . . . . . . . . . . . . . . . . . . . . . . . 7 High Security . | . . . . . . . . . . . . . . . . . . . . . . . . . . . . . . . . . Max Security . | . . . . . . . . . . . . . . . . . . . . . . . . . . . . . . . . . Squads Dispatched 91 | . 2 . . . 10 8 . . . . 6 . 14 . . . . . 3 . . . . 3 . 1 . . . . 7 37 Investigation 15 | . 1 . . . 3 . . . . . 1 . 5 . . . . . 1 . . . . . . . . . . . 2 2 Extermination 21 | . . . . . . 2 . . . . 1 . 5 . . . . . . . . . . 1 . 1 . . . . 2 9 Reinforcement 37 | . 1 . . . 5 5 . . . . 4 . 3 . . . . . 2 . . . . . . . . . . . 3 14 Assault 15 | . . . . . 1 . . . . . . . 1 . . . . . . . . . . 2 . . . . . . . 11 Garrison 3 | . . . . . 1 1 . . . . . . . . . . . . . . . . . . . . . . . . . 1 Intercept . | . . . . . . . . . . . . . . . . . . . . . . . . . . . . . . . . . Construction Impeded 10 | . . . . . 1 1 . . . . 1 . 1 . . . . . . . . . . . . . . . . . 2 4 Haulers Reinforced 6 | . . . . . . 3 . . . . . . 2 . . . . . 1 . . . . . . . . . . . . . Stealth | -11 -10 -10 -10 -9 -8 -7 -7 -7 -7 -6 -6 -6 -6 -6 -6 -6 -6 -5 -5 -5 -5 -5 -4 -4 -4 -4 -4 -4 -4 -3 -3 -3 --------- Run | Scr Mat Min Exi Min Mat Fac Low Low Dat Pro Fac Was Fac Low Low Zio Dee Pro Fac Upp Upp Zhi Pro Fac Was Fac Upp Upp War Pro Res Tes Distress Signals 31 | . . . . . 4 1 . . . . . . 3 . . . . 18 . . . . . . . 1 . . 1 . 2 1 Communications Jammed . | . . . . . . . . . . . . . . . . . . . . . . . . . . . . . . . . . Distress Signals . | . . . . . . . . . . . . . . . . . . . . . . . . . . . . . . . . . Times Spotted 481 | . 6 6 . 2 42 24 13 7 . 17 8 6 30 . . 17 66 8 5 . 1 . 8 14 5 4 2 4 17 11 24 134 Peak Tracking Total 36 | . 3 3 . 1 8 5 5 3 . 6 4 4 4 . . 2 36 2 3 4 3 . 5 5 3 4 2 4 9 4 4 11 Tactical Retreats 50 | . 1 . . . . 3 . . . 3 . . 3 . . 1 4 3 2 2 2 . 1 1 . . . 6 . 3 4 11 Traps | -11 -10 -10 -10 -9 -8 -7 -7 -7 -7 -6 -6 -6 -6 -6 -6 -6 -6 -5 -5 -5 -5 -5 -4 -4 -4 -4 -4 -4 -4 -3 -3 -3 ------- Run | Scr Mat Min Exi Min Mat Fac Low Low Dat Pro Fac Was Fac Low Low Zio Dee Pro Fac Upp Upp Zhi Pro Fac Was Fac Upp Upp War Pro Res Tes Traps Triggered 20 | . 3 . . . . 1 . . . . 3 . 4 . . 1 . . . . . . . 4 . . . 1 . . . 3 Indirectly 5 | . . . . . . . . . . . 1 . . . . 1 . . . . . . . 3 . . . . . . . . Trap Hack Attempts . | . . . . . . . . . . . . . . . . . . . . . . . . . . . . . . . . . Triggered . | . . . . . . . . . . . . . . . . . . . . . . . . . . . . . . . . . Disarmed 4 | . . . . . . 4 . . . . . . . . . . . . . . . . . . . . . . . . . . Reprogrammed . | . . . . . . . . . . . . . . . . . . . . . . . . . . . . . . . . . Reused 7 | . . . . . . . . . . 1 . . . . . 3 . 3 . . . . . . . . . . . . . . Traps Extracted . | . . . . . . . . . . . . . . . . . . . . . . . . . . . . . . . . . Installed 18 | . . . . . . . . 5 . 1 . . . . . 8 . 4 . . . . . . . . . . . . . . Triggered 21 | . . . . . . . . . . 1 . . . . 1 . . 4 . 3 . . . . . . . 2 9 . . 1 Machines | -11 -10 -10 -10 -9 -8 -7 -7 -7 -7 -6 -6 -6 -6 -6 -6 -6 -6 -5 -5 -5 -5 -5 -4 -4 -4 -4 -4 -4 -4 -3 -3 -3 ---------- Run | Scr Mat Min Exi Min Mat Fac Low Low Dat Pro Fac Was Fac Low Low Zio Dee Pro Fac Upp Upp Zhi Pro Fac Was Fac Upp Upp War Pro Res Tes Machines Disabled 52 | . . . . . 3 . . . . . 3 . 5 . . 2 2 2 . . . . . 10 . 1 . . . . 5 19 Max in Single Turn 4 | . . . . . 1 . . . . . 1 . 1 . . 1 1 1 . . . . . 4 . 1 . . . . 2 3 Garrison Access 5 | . . . . . 1 . . . . . . . 2 . . . . . 1 . . . . . . . . . . . . 1 Machines Sabotaged . | . . . . . . . . . . . . . . . . . . . . . . . . . . . . . . . . . Garrisons Compromised . | . . . . . . . . . . . . . . . . . . . . . . . . . . . . . . . . . Overloaded Fab Kills . | . . . . . . . . . . . . . . . . . . . . . . . . . . . . . . . . . Fab Network Shutdowns 1 | . . . . . . . . . . . . . 1 . . . . . . . . . . . . . . . . . . . Hacking | -11 -10 -10 -10 -9 -8 -7 -7 -7 -7 -6 -6 -6 -6 -6 -6 -6 -6 -5 -5 -5 -5 -5 -4 -4 -4 -4 -4 -4 -4 -3 -3 -3 --------- Run | Scr Mat Min Exi Min Mat Fac Low Low Dat Pro Fac Was Fac Low Low Zio Dee Pro Fac Upp Upp Zhi Pro Fac Was Fac Upp Upp War Pro Res Tes Machines Accessed 83 | . 2 . 5 . 6 6 1 . 4 . 5 . 17 1 1 . . . 5 . 1 9 . . . 2 2 . 5 . 4 7 Terminals 33 | . 2 . . . 2 4 . . . . 5 . 9 . . . . . 2 . . . . . . 2 . . . . 3 4 Fabricators 6 | . . . . . . 2 . . . . . . 1 . . . . . 2 . . . . . . . . . . . . 1 Repair Stations 3 | . . . . . . . . . . . . . 2 . . . . . . . . . . . . . . . . . 1 . Recycling Units 5 | . . . . . 2 . . . . . . . 3 . . . . . . . . . . . . . . . . . . . Scanalyzers 3 | . . . . . 1 . . . . . . . . . . . . . . . . . . . . . . . . . . 2 Garrison Access 4 | . . . . . 1 . . . . . . . 2 . . . . . 1 . . . . . . . . . . . . . Total Hacks 269 | . 5 . 49 . 18 16 2 . 26 . 13 . 36 1 1 . . . 11 . 1 48 . . . 3 4 . 12 . 9 14 Successful 201 | . 4 . 49 . 10 6 2 . 26 . 3 . 18 1 1 . . . 3 . 1 48 . . . 1 4 . 12 . 4 8 Failed 68 | . 1 . . . 8 10 . . . . 10 . 18 . . . . . 8 . . . . . . 2 . . . . 5 6 Catastrophic 9 | . . . . . 1 . . . . . 4 . 1 . . . . . 1 . . . . . . 1 . . . . . 1 Database Lockouts . | . . . . . . . . . . . . . . . . . . . . . . . . . . . . . . . . . Manual 56 | . 4 . 1 . 10 4 . . . . 9 . 11 . . 5 . . 1 . . . . . . 2 . . 1 . 3 5 Terminals 81 | . 5 . . . 10 11 . . . . 13 . 21 . . . . . 4 . . . . . . 3 . . . . 5 9 Fabricators 16 | . . . . . . 5 . . . . . . 4 . . . . . 5 . . . . . . . . . . . . 2 Repair Stations 9 | . . . . . . . . . . . . . 5 . . . . . . . . . . . . . . . . . 4 . Recycling Units 7 | . . . . . 3 . . . . . . . 4 . . . . . . . . . . . . . . . . . . . Scanalyzers 5 | . . . . . 2 . . . . . . . . . . . . . . . . . . . . . . . . . . 3 Garrison Access 7 | . . . . . 3 . . . . . . . 2 . . . . . 2 . . . . . . . . . . . . . Terminal Hacks 166 | . 3 . 49 . 3 4 2 . 26 . 2 . 5 1 1 . . . 1 . 1 48 . . . . 4 . 12 . 1 3 Record 111 | . . . 48 . . . 2 . 11 . . . . . . . . . . . . 36 . . . . 3 . 11 . . . Part Schematic 11 | . . . . . . . . . 7 . . . . . . . . . . . . 4 . . . . . . . . . . Robot Schematic 5 | . . . . . . . . . 5 . . . . . . . . . . . . . . . . . . . . . . . Robot Analysis 9 | . 3 . . . 2 . . . . . . . . . . . . . . . . 4 . . . . . . . . . . Prototype ID Bank 9 | . . . . . . . . . 3 . 1 . 1 . . . . . . . . 4 . . . . . . . . . . Open Door 5 | . . . . . . . . . . . . . . 1 1 . . . . . 1 . . . . . 1 . 1 . . . Branch Access Points 3 | . . . . . . 1 . . . . 1 . 1 . . . . . . . . . . . . . . . . . . . Alert Level 1 | . . . . . . . . . . . . . 1 . . . . . . . . . . . . . . . . . . . Unreport Threat 1 | . . . . . . . . . . . . . . . . . . . . . . . . . . . . . . . . 1 Locate Traps 4 | . . . . . 1 1 . . . . . . 1 . . . . . 1 . . . . . . . . . . . . . Disarm Traps 1 | . . . . . . 1 . . . . . . . . . . . . . . . . . . . . . . . . . . Recall Extermination 1 | . . . . . . . . . . . . . . . . . . . . . . . . . . . . . . . 1 . Recall Reinforcements 2 | . . . . . . 1 . . . . . . . . . . . . . . . . . . . . . . . . . 1 Hauler Manifests 1 | . . . . . . . . . . . . . 1 . . . . . . . . . . . . . . . . . . . EX-Prototype ID Bank 1 | . . . 1 . . . . . . . . . . . . . . . . . . . . . . . . . . . . . Protovariant Controls 1 | . . . . . . . . . . . . . . . . . . . . . . . . . . . . . . . . 1 Fabricator Hacks 6 | . . . . . . 1 . . . . . . 2 . . . . . 1 . . . . . . . . . . . . 2 Load Schematic 4 | . . . . . . 1 . . . . . . 1 . . . . . 1 . . . . . . . . . . . . 1 Build 2 | . . . . . . . . . . . . . 1 . . . . . . . . . . . . . . . . . . 1 Repair Station Hacks 5 | . . . . . . . . . . . . . 3 . . . . . . . . . . . . . . . . . 2 . Scan Component 3 | . . . . . . . . . . . . . 2 . . . . . . . . . . . . . . . . . 1 . Repair 2 | . . . . . . . . . . . . . 1 . . . . . . . . . . . . . . . . . 1 . Recycling Unit Hacks 1 | . . . . . 1 . . . . . . . . . . . . . . . . . . . . . . . . . . . Retrieve Components 1 | . . . . . 1 . . . . . . . . . . . . . . . . . . . . . . . . . . . Scanalyzer 3 | . . . . . 2 . . . . . . . . . . . . . . . . . . . . . . . . . . 1 Insert Component 2 | . . . . . 1 . . . . . . . . . . . . . . . . . . . . . . . . . . 1 Analyze 1 | . . . . . 1 . . . . . . . . . . . . . . . . . . . . . . . . . . . Garrison Access Hacks 2 | . . . . . . . . . . . . . 1 . . . . . 1 . . . . . . . . . . . . . Seal Access 2 | . . . . . . . . . . . . . 1 . . . . . 1 . . . . . . . . . . . . . Unauthorized Hacks 48 | . 2 . . . 9 3 . . . . 4 . 16 . . . . . 1 . . . . . . 3 . . . . 4 6 Terminals 10 | . 1 . . . 1 1 . . . . 1 . 2 . . . . . . . . . . . . 1 . . . . 1 2 Botnet 10 | . 1 . . . 1 1 . . . . 1 . 2 . . . . . . . . . . . . 1 . . . . 1 2 Fabricators 1 | . . . . . . . . . . . . . 1 . . . . . . . . . . . . . . . . . . . Haulers 1 | . . . . . . . . . . . . . 1 . . . . . . . . . . . . . . . . . . . Repair Stations . | . . . . . . . . . . . . . . . . . . . . . . . . . . . . . . . . . Recycling Units 5 | . . . . . 2 . . . . . . . 3 . . . . . . . . . . . . . . . . . . . Tunnel 5 | . . . . . 2 . . . . . . . 3 . . . . . . . . . . . . . . . . . . . Scanalyzers . | . . . . . . . . . . . . . . . . . . . . . . . . . . . . . . . . . Garrison Access 2 | . . . . . 1 . . . . . . . 1 . . . . . . . . . . . . . . . . . . . Jam 2 | . . . . . 1 . . . . . . . 1 . . . . . . . . . . . . . . . . . . . Data Cores Recovered 2 | . . . . . . 1 . . . . . . 1 . . . . . . . . . . . . . . . . . . . Used 1 | . . . . . . 1 . . . . . . . . . . . . . . . . . . . . . . . . . . Hacking Detections 47 | . 2 . . . 4 6 . . . . 5 . 12 . . . . . 5 . . . . . . 2 . . . . 4 7 Full Trace Events 5 | . . . . . . . . . . . 1 . 1 . . . . . 1 . . . . . . . . . . . 1 1 Feedback Events 2 | . . . . . . . . . . . 1 . . . . . . . . . . . . . . . . . . . . 1 Corruption 2 | . . . . . . . . . . . 1 . . . . . . . . . . . . . . . . . . . . 1 Feedback Blocked . | . . . . . . . . . . . . . . . . . . . . . . . . . . . . . . . . . Robot Schematics Acquired 5 | . . . . . . . . . 5 . . . . . . . . . . . . . . . . . . . . . . . Robots Built . | . . . . . . . . . . . . . . . . . . . . . . . . . . . . . . . . . Matter . | . . . . . . . . . . . . . . . . . . . . . . . . . . . . . . . . . Time . | . . . . . . . . . . . . . . . . . . . . . . . . . . . . . . . . . Total Robot Build Rating . | . . . . . . . . . . . . . . . . . . . . . . . . . . . . . . . . . Part Schematics Acquired 12 | . . . . . 1 . . . 7 . . . . . . . . . . . . 4 . . . . . . . . . . Parts Built 2 | . . . . . . . . . . . . . 1 . . . . . . . . . . . . . . . . . . 1 Matter 669 | . . . . . . . . . . . . . 318 . . . . . . . . . . . . . . . . . . 351 Time 146 | . . . . . . . . . . . . . 84 . . . . . . . . . . . . . . . . . . 62 Total Part Build Rating 13 | . . . . . . . . . . . . . 6 . . . . . . . . . . . . . . . . . . 7 Parts Repaired 2 | . . . . . . . . . . . . . 1 . . . . . . . . . . . . . . . . . 1 . Time 84 | . . . . . . . . . . . . . 44 . . . . . . . . . . . . . . . . . 40 . Parts Recycled . | . . . . . . . . . . . . . . . . . . . . . . . . . . . . . . . . . Recycled Matter . | . . . . . . . . . . . . . . . . . . . . . . . . . . . . . . . . . Retrieved Matter . | . . . . . . . . . . . . . . . . . . . . . . . . . . . . . . . . . Retrieved Components . | . . . . . . . . . . . . . . . . . . . . . . . . . . . . . . . . . Parts Scanalyzed 1 | . . . . . 1 . . . . . . . . . . . . . . . . . . . . . . . . . . . Part Schematics Acquired 1 | . . . . . 1 . . . . . . . . . . . . . . . . . . . . . . . . . . . Parts Damaged . | . . . . . . . . . . . . . . . . . . . . . . . . . . . . . . . . . Bothacking | -11 -10 -10 -10 -9 -8 -7 -7 -7 -7 -6 -6 -6 -6 -6 -6 -6 -6 -5 -5 -5 -5 -5 -4 -4 -4 -4 -4 -4 -4 -3 -3 -3 ------------ Run | Scr Mat Min Exi Min Mat Fac Low Low Dat Pro Fac Was Fac Low Low Zio Dee Pro Fac Upp Upp Zhi Pro Fac Was Fac Upp Upp War Pro Res Tes Used RIF Installer . | . . . . . . . . . . . . . . . . . . . . . . . . . . . . . . . . . Robots Hacked 6 | . . . . . . . . . 1 . 1 . . . 1 . 1 1 1 . . . . . . . . . . . . . Non-combat 2 | . . . . . . . . . . . 1 . . . . . 1 . . . . . . . . . . . . . . . Combat 4 | . . . . . . . . . 1 . . . . . 1 . . 1 1 . . . . . . . . . . . . . Robot Hacks Applied 6 | . . . . . . . . . 1 . 1 . . . 1 . 1 1 1 . . . . . . . . . . . . . parse_system 5 | . . . . . . . . . 1 . . . . . 1 . 1 1 1 . . . . . . . . . . . . . find_chute 1 | . . . . . . . . . . . 1 . . . . . . . . . . . . . . . . . . . . . Relay Couplers Released 4 | . . . . . . 3 . . . . . . . . . . . . . . . . . . . . . . . . . 1 Machine Destruction 1 | . . . . . . . . . . . . . . . . . . . . . . . . . . . . . . . . 1 Programmers 3 | . . . . . . 3 . . . . . . . . . . . . . . . . . . . . . . . . . . Robots Rewired 7 | . . . 3 . . . . . . . . . . . . . . 2 . . . . . . . . . . 2 . . . Allies Hacked 1 | . . . . . . . . . . . . . . . . . . . . . . . . . . . . . . 1 . . Hacks Repelled . | . . . . . . . . . . . . . . . . . . . . . . . . . . . . . . . . . Allies | -11 -10 -10 -10 -9 -8 -7 -7 -7 -7 -6 -6 -6 -6 -6 -6 -6 -6 -5 -5 -5 -5 -5 -4 -4 -4 -4 -4 -4 -4 -3 -3 -3 -------- Run | Scr Mat Min Exi Min Mat Fac Low Low Dat Pro Fac Was Fac Low Low Zio Dee Pro Fac Upp Upp Zhi Pro Fac Was Fac Upp Upp War Pro Res Tes Total Allies 31 | . . 3 3 2 . . . . . 1 . . . . . . . 2 . . . . . . 18 . . . 2 . . . Largest Group 18 | . . 3 6 8 8 . . . . 1 . . . . . . . 2 2 . . . . . 18 16 2 . 2 2 2 . Highest-Rated Group 668 | . . 40 90 131 131 . . . . 94 . . . . . . . 98 98 . . . . . 668 568 65 . 109 109 109 . Highest-Rated Ally 94 | . . 16 21 31 31 . . . . 94 . . . . . . . 49 49 . . . . . 50 46 33 . 60 60 60 . Total Orders 120 | . . . . . . . . . . . . . 1 . 15 32 19 29 . . . . . . . 2 . . 9 10 2 1 GOTO 39 | . . . . . . . . . . . . . . . 2 6 8 12 . . . . . . . . . . 5 5 1 . FOLLOW 15 | . . . . . . . . . . . . . . . 1 5 1 2 . . . . . . . . . . 1 4 1 . EXPLORE 5 | . . . . . . . . . . . . . . . . . . . . . . . . . . 2 . . 3 . . . RETURN 61 | . . . . . . . . . . . . . 1 . 12 21 10 15 . . . . . . . . . . . 1 . 1 Ally Attacks 616 | . . . . 8 69 . . . . 16 . . 5 . 41 217 57 84 13 . . . . . . 55 . . 6 5 3 37 Total Damage 12580 | . . . . 105 979 . . . . 655 . . 122 . 538 3961 1013 1999 810 . . . . . . 1156 . . 302 110 49 781 Kills 112 | . . . . 1 8 . . . . 3 . . 2 . 6 47 14 18 2 . . . . . . 7 . . 2 . . 2 Allies Corrupted 2 | . . . . . . . . . . . . . . . . . . . . . . . . . . 1 . . . . 1 . Allies Melted . | . . . . . . . . . . . . . . . . . . . . . . . . . . . . . . . . . Intel | -11 -10 -10 -10 -9 -8 -7 -7 -7 -7 -6 -6 -6 -6 -6 -6 -6 -6 -5 -5 -5 -5 -5 -4 -4 -4 -4 -4 -4 -4 -3 -3 -3 ------- Run | Scr Mat Min Exi Min Mat Fac Low Low Dat Pro Fac Was Fac Low Low Zio Dee Pro Fac Upp Upp Zhi Pro Fac Was Fac Upp Upp War Pro Res Tes Robot Analysis Total 9 | . 3 . . . 2 . . . . . . . . . . . . . . . . 4 . . . . . . . . . . Derelict Logs Recovered 19 | . . 1 . 1 . . 2 1 . 1 . . . 2 3 1 . 2 . 1 1 . 1 . . . 1 1 . . . . Drone Launches 75 | . . . . . . . . . . . . . 2 . 16 24 9 12 1 . . . . . . 4 . . 3 . . 4 Drone Recoveries 64 | . . . . . . . . . . . . . 2 . 16 23 9 12 . . . . . . . . . . . . . 2 Exploration | -11 -10 -10 -10 -9 -8 -7 -7 -7 -7 -6 -6 -6 -6 -6 -6 -6 -6 -5 -5 -5 -5 -5 -4 -4 -4 -4 -4 -4 -4 -3 -3 -3 ------------- Run | Scr Mat Min Exi Min Mat Fac Low Low Dat Pro Fac Was Fac Low Low Zio Dee Pro Fac Upp Upp Zhi Pro Fac Was Fac Upp Upp War Pro Res Tes Turns Passed 55704 | 62 336 1386 937 1349 1210 1094 1153 1517 106 1805 975 301 3963 1284 1592 14341 1802 3230 836 1340 1281 216 1643 477 787 307 1460 1817 879 1290 1081 3847 Spaces Moved 25753 | 32 163 795 548 815 453 612 851 1086 79 1003 540 168 2347 929 1052 1832 776 1736 456 976 946 153 1186 279 427 208 953 1135 541 799 466 1411 Core 3 | 3 . . . . . . . . . . . . . . . . . . . . . . . . . . . . . . . . Treads 3157 | 29 163 795 548 815 437 . . . . . . . . . . . . . . . . . . . . . . . . . . 370 Legs . | . . . . . . . . . . . . . . . . . . . . . . . . . . . . . . . . . Wheels 22591 | . . . . . 16 612 851 1086 79 1003 540 168 2347 929 1052 1832 776 1736 456 976 946 152 1186 279 426 208 953 1135 541 799 466 1041 Hover 2 | . . . . . . . . . . . . . . . . . . . . . . 1 . . 1 . . . . . . . Flight . | . . . . . . . . . . . . . . . . . . . . . . . . . . . . . . . . . Fastest Speed 50 | 50 160 160 160 160 110 120 120 120 130 120 130 130 130 130 130 130 130 140 130 130 130 130 130 130 130 130 130 140 140 150 150 130 Average Speed 141 | 149 160 160 160 160 185 120 125 128 130 129 130 130 130 130 138 138 139 147 142 130 130 131 130 134 140 139 146 149 149 150 150 165 Slowest Speed 420 | 160 160 160 160 160 190 120 130 130 130 130 130 130 160 130 140 140 140 150 150 150 130 300 130 150 420 140 160 150 150 150 180 240 Overloaded Moves . | . . . . . . . . . . . . . . . . . . . . . . . . . . . . . . . . . Propulsion Burnouts . | . . . . . . . . . . . . . . . . . . . . . . . . . . . . . . . . . Robots Hopped . | . . . . . . . . . . . . . . . . . . . . . . . . . . . . . . . . . Cave-ins Triggered . | . . . . . . . . . . . . . . . . . . . . . . . . . . . . . . . . . Exploration Rate (%) 70 | 3 28 99 94 98 45 23 94 97 69 94 17 95 47 86 99 90 90 96 13 93 97 62 98 12 97 9 96 93 92 98 16 75 Regions Visited 32 Branch Regions 21 Pre-discovered Areas 18 | . . . 1 . 2 . 1 . 1 . . . 3 . 1 4 . . . . . 3 . . . . 1 1 . . . . Known Exits Taken 23 | . . . . 1 . 1 1 1 1 1 . . 1 1 1 1 1 1 1 1 1 1 1 . . 1 1 1 1 1 1 . Unknown Exits Taken 5 | 1 1 1 1 . 1 . . . . . . . . . . . . . . . . . . . . . . . . . . . Scrap Searched 42 | . . 1 . 2 . . 4 2 . 1 . . . 8 3 1 . 4 . 3 3 . 3 . . . 2 2 . 3 . . Spaces Dug 266 | . . . . . 3 5 20 25 . 13 17 48 25 12 . . 13 14 10 . . . 2 . 3 . . . 1 . 9 46 Terrain Destroyed 1734 | . . . . . 40 5 71 38 . 35 45 233 59 19 . 45 33 26 14 70 13 . 126 65 7 24 45 31 161 110 60 359 Melee 64 | . . . . . . 5 . 10 . 13 15 3 18 . . . . . . . . . . . . . . . . . . . Projectile 230 | . . . . . . . . . . . 4 . 8 19 . 7 33 26 14 . . . 2 5 7 . . . 1 . 14 90 AOE 1440 | . . . . . 40 . 71 28 . 22 26 230 33 . . 38 . . . 70 13 . 124 60 . 24 45 31 160 110 46 269 Actions | -11 -10 -10 -10 -9 -8 -7 -7 -7 -7 -6 -6 -6 -6 -6 -6 -6 -6 -5 -5 -5 -5 -5 -4 -4 -4 -4 -4 -4 -4 -3 -3 -3 --------- Run | Scr Mat Min Exi Min Mat Fac Low Low Dat Pro Fac Was Fac Low Low Zio Dee Pro Fac Upp Upp Zhi Pro Fac Was Fac Upp Upp War Pro Res Tes Total 43090 | 43 203 879 597 851 667 825 917 1149 81 1424 742 194 3017 985 1179 13580 1150 2335 604 1047 1003 169 1292 385 544 226 1022 1249 611 892 821 2407 Wait 13921 | . 13 63 . 17 24 40 5 1 . 349 118 . 372 26 90 11648 141 448 40 10 7 . 16 30 20 . 4 36 1 7 116 279 Move 25723 | 31 162 794 547 814 452 611 850 1085 78 1002 540 167 2346 928 1051 1831 775 1735 455 975 945 152 1185 279 426 207 952 1134 540 798 465 1411 Hop . | . . . . . . . . . . . . . . . . . . . . . . . . . . . . . . . . . Pick Up 309 | 6 3 3 4 5 29 23 7 7 . 5 7 . 15 . 10 7 12 12 12 4 3 3 9 3 10 4 7 1 5 7 24 62 Fast Attach 239 | 6 1 . . . 8 6 7 . . 1 6 . 21 5 5 16 5 11 6 6 2 6 3 3 7 2 12 4 9 1 11 69 Attach 215 | . . . . . 14 5 2 3 . 3 3 . 7 . 1 4 6 2 12 2 . . 7 8 10 2 9 . 2 5 36 72 Detach 97 | . . . . . 1 . 2 . . 1 . . 4 3 1 4 3 7 4 1 . . 1 5 4 . 7 . 1 . 16 32 Swap 318 | . 3 . 3 . 17 25 17 13 2 16 16 3 98 2 4 6 13 5 10 . . . . . 4 . 1 2 . 2 7 49 Drop 395 | . 3 2 3 2 27 24 11 4 . 5 10 . 32 2 7 25 14 23 17 9 5 8 12 4 17 6 16 5 15 8 31 48 Fire 1661 | . 18 15 6 2 93 77 15 19 1 28 22 21 79 19 10 30 181 79 48 40 41 . 59 53 46 3 14 67 15 64 115 381 Melee 81 | . . . . . . 5 1 12 . 13 20 3 27 . . . . . . . . . . . . . . . . . . . Ram 2 | . . . . . . 1 . . . . . . . . . . . . . . . . . . . . . . . . . 1 Kick . | . . . . . . . . . . . . . . . . . . . . . . . . . . . . . . . . . Crush 16 | . . 2 . 11 2 . . . . . . . . . . . . . . . . . . . . . . . . . . 1 Escape Stasis 24 | . . . . . . 8 . . . . . . 16 . . . . . . . . . . . . . . . . . . . Rewire 66 | . . . 34 . . . . . . . . . . . . . . 9 . . . . . . . . . . 22 . . 1 Trap 19 | . . . . . . . . 5 . 1 . . . . . 9 . 4 . . . . . . . . . . . . . . Miscellaneous 4 | . . . . . . . . . . . . . . . . . . . . . . . . . . 2 . . 1 . . 1 Route ------- -11/Scrapyard -10/Materials -10/Mines (discovered 3 exits: [*Mat x2] / *Exi) -10/Exiles (discovered 2 exits: [*Min x2]) -9/Mines (discovered 2 exits: *Mat x2) -8/Materials (discovered 2 exits: *Fac x2) -7/Factory (discovered 2 exits: *Low x2) -7/Lower Caves (discovered 2 exits: *Low / *Dat) -7/Lower Caves (discovered 2 exits: *Fac / *Dat) -7/Data Miner -6/Proximity Caves -6/Factory (discovered 2 exits: *Low x2) -6/Waste -6/Factory (discovered 4 exits: *Fac x2 / *Low x2) -6/Lower Caves -6/Lower Caves (discovered 2 exits: *Fac / *Zio) -6/Zion (discovered 2 exits: *Dee / *Pro) -6/Deep Caves -5/Proximity Caves -5/Factory (discovered 6 exits: *Fac x3 / *Upp / *Ext x2) -5/Upper Caves -5/Upper Caves (discovered 2 exits: *Fac / *Zhi) -5/Zhirov -4/Proximity Caves -4/Factory -4/Waste -4/Factory -4/Upper Caves (discovered 2 exits: *Upp / *War) -4/Upper Caves (discovered 2 exits: *Res / *War) -4/Warlord -3/Proximity Caves -3/Research (discovered 3 exits: Res / *Tes x2) -3/Testing History --------- Turn | Location | Event 20 | -11/Scrapyard | Discovered new exit (range 15) 63 | -11/Scrapyard | Entered Materials 314 | -10/Materials | Build established: Mutant 388 | -10/Materials | Discovered new exit (range 6) 399 | -10/Materials | Entered Mines 425 | -10/Mines | Met a Derelict bent on vengeance 831 | -10/Mines | Discovered new exit (range 7) 1225 | -10/Mines | Discovered new exit (range 14) 1445 | -10/Mines | Deemed a non-threat by the Exiles lab entrance 1446 | -10/Mines | Discovered new exit (range 5) 1640 | -10/Mines | Assisted by bots powering up and referring to "LRC-V3" 1785 | -10/Mines | Entered Exiles 1785 | -10/Exiles | Found Exiles lab destroyed 1785 | -10/Exiles | Accompanied by 3 allies 1806 | -10/Exiles | Discovered new exit (range 15) 1971 | -10/Exiles | Learned location of Zion (-6) 2254 | -10/Exiles | Build established: Commander-Mutant 2514 | -10/Exiles | Opened EX-Vault 2528 | -10/Exiles | Found Superbattery 2698 | -10/Exiles | Discovered new exit (range 15) 2722 | -10/Exiles | Entered Mines 2722 | -9/Mines | Accompanied by 6 allies 2758 | -9/Mines | Identified exit to Materials 2858 | -9/Mines | Assembled infested the area 2996 | -9/Mines | Discovered exit to Materials (range 10) 3776 | -9/Mines | Found a damaged Exp. Sensor Array with a note attached 3781 | -9/Mines | Found Prototype Device 4071 | -9/Mines | Entered Materials 4071 | -8/Materials | Accompanied by 8 allies 4071 | -8/Materials | Evolved 4 slots: Utility x4 4076 | -8/Materials | Led the pair of lost Derelicts to an unsafe place 4096 | -8/Materials | Garrison activated, responded to threat 4404 | -8/Materials | Build established: Scavenger-Mutant 4715 | -8/Materials | Discovered new exit (range 12) 4739 | -8/Materials | Identified Exp. Sensor Array 4965 | -8/Materials | Lost 5 parts (1n1u3w) 4971 | -8/Materials | Destroyed 11 combat bots 4986 | -8/Materials | Build established: Hauler-Mutant 5045 | -8/Materials | Core integrity fell below 50% 5098 | -8/Materials | Lost 3 parts (1p1u1w) 5227 | -8/Materials | Discovered new exit (range 16) 5271 | -8/Materials | First assault squad dispatched 5281 | -8/Materials | Entered Factory 5281 | -7/Factory | Evolved 2 slots: Utility x2 5819 | -7/Factory | Identified exit to Lower Caves 5844 | -7/Factory | Garrison activated, responded to threat 6375 | -7/Factory | Entered Lower Caves 6376 | -7/Lower Caves | Imp. Ion Engine stolen by Master Thief 6713 | -7/Lower Caves | Identified exit to Lower Caves 6774 | -7/Lower Caves | Encountered a Warlord checkpoint 7085 | -7/Lower Caves | A Derelict revealed a hidden shortcut to meet someone special 7088 | -7/Lower Caves | Identified exit to Data Miner 7528 | -7/Lower Caves | Entered another Lower Caves area 7608 | -7/Lower Caves | Discovered new exit (range 5) 7612 | -7/Lower Caves | Identified exit to Factory 7779 | -7/Lower Caves | Attracted the attention of an 0b10 checkpoint 8133 | -7/Lower Caves | Encountered a Warlord checkpoint 8199 | -7/Lower Caves | Learned Factory terminal intel 8408 | -7/Lower Caves | Discovered exit to Data Miner (range 6) 8671 | -7/Lower Caves | Spotted B-75 Beast 9045 | -7/Lower Caves | Entered Data Miner 9045 | -7/Data Miner | Discovered new exit (range 6) 9052 | -7/Data Miner | Identified exit to Proximity Caves 9070 | -7/Data Miner | Met Data Miner 9094 | -7/Data Miner | Learned location of Section 7 (-2) 9094 | -7/Data Miner | Acquired the access code to Warlord's prototype stash 9116 | -7/Data Miner | Received God Mode back door access code from Data Miner 9151 | -7/Data Miner | Entered Proximity Caves 9157 | -6/Proximity Caves | Attracted the attention of an 0b10 checkpoint 9651 | -6/Proximity Caves | Spotted B-75 Beast 9653 | -6/Proximity Caves | Escorted by Enhanced Grunt 9672 | -6/Proximity Caves | Allies destroyed B-75 Beast 10207 | -6/Proximity Caves | Discovered exit to Factory (range 10) 10956 | -6/Proximity Caves | Entered Factory 10956 | -6/Factory | Evolved 2 slots: Power x1, Utility x1 10957 | -6/Factory | Loaded intel: 20 terminal locations 11559 | -6/Factory | Discovered new exit (range 8) 11652 | -6/Factory | Identified exit to Lower Caves 11931 | -6/Factory | Sucked down chute 11931 | -6/Factory | Entered Waste 11942 | -6/Waste | Spotted C-40 Crusher 11946 | -6/Waste | EMP discharged 11946 | -6/Waste | System corruption reached 10% 11969 | -6/Waste | Destroyed C-40 Crusher 12020 | -6/Waste | Spotted C-40 Crusher 12026 | -6/Waste | Destroyed C-40 Crusher 12030 | -6/Waste | Spotted C-40 Crusher 12039 | -6/Waste | Spotted C-40 Crusher 12039 | -6/Waste | Spotted C-40 Crusher 12039 | -6/Waste | Destroyed C-40 Crusher 12046 | -6/Waste | EMP discharged 12049 | -6/Waste | Spotted C-40 Crusher 12049 | -6/Waste | Destroyed C-40 Crusher 12084 | -6/Waste | Destroyed C-40 Crusher 12128 | -6/Waste | Destroyed C-40 Crusher 12146 | -6/Waste | EMP discharged 12177 | -6/Waste | Discovered new exit (range 16) 12231 | -6/Waste | Identified exit to Factory 12232 | -6/Waste | Entered Factory 12595 | -6/Factory | Incoming investigation squad redirected 12736 | -6/Factory | Incoming investigation squad redirected 13058 | -6/Factory | Found Exp. Sensor Array 13061 | -6/Factory | Found Exp. Sensor Array 13111 | -6/Factory | Discovered new exit (range 13) 13290 | -6/Factory | Identified exit to Factory 13768 | -6/Factory | Incoming investigation squad redirected 13943 | -6/Factory | Discovered exit to Factory (range 8) 13998 | -6/Factory | Repaired Hrd. Heavy Armor Plating? 15283 | -6/Factory | Fabricated Combat Drone Bay? 15506 | -6/Factory | Found Exp. Signal Interpreter 15561 | -6/Factory | Local fabrication network quarantined 16082 | -6/Factory | First assault squad dispatched 16195 | -6/Factory | Entered Lower Caves 16372 | -6/Lower Caves | Encountered a Warlord checkpoint 16954 | -6/Lower Caves | Discovered new exit (range 16) 17064 | -6/Lower Caves | Learned Factory terminal intel 17476 | -6/Lower Caves | Identified exit to Lower Caves 17479 | -6/Lower Caves | Entered another Lower Caves area 17532 | -6/Lower Caves | Discovered exit to Factory (range 8) 18481 | -6/Lower Caves | Learned 8 Factory zone layouts 18830 | -6/Lower Caves | Discovered new exit (range 5) 18834 | -6/Lower Caves | Identified exit to Zion 19071 | -6/Lower Caves | Entered Zion 19147 | -6/Zion | Discovered new exit (range 12) 19162 | -6/Zion | Identified exit to Proximity Caves 19213 | -6/Zion | Received a visual enhancement algorithm 19309 | -6/Zion | Learned Factory emergency access door positions 20058 | -6/Zion | Learned location of 1 exit from Factory 32638 | -6/Zion | Attacked by Zionites 32788 | -6/Zion | ME-RLN came to Zion's defense 32833 | -6/Zion | Allies destroyed ME-RLN 32847 | -6/Zion | Lost 3 parts (1p2u) 32849 | -6/Zion | Destroyed Imprinter 32885 | -6/Zion | Extracted access codes from Imprinter's data core 32909 | -6/Zion | Found Prototype Device 32909 | -6/Zion | Identified Exp. Phase Shifter 32925 | -6/Zion | Found Prototype Hackware 33000 | -6/Zion | Found Ghost Barrier 33246 | -6/Zion | Opened final containment barrier to the Deep Caves 33269 | -6/Zion | Discovered new exit (range 3) 33269 | -6/Zion | Saw the warning signs outside the Deep Caves entrance 33270 | -6/Zion | Identified exit to Deep Caves 33412 | -6/Zion | Entered Deep Caves 33468 | -6/Deep Caves | Z-Facility disabled 33872 | -6/Deep Caves | Found Prototype Protection 33872 | -6/Deep Caves | Identified Zio. Heavy Carapace 34314 | -6/Deep Caves | Discovered new exit (range 6) 34320 | -6/Deep Caves | Identified exit to Proximity Caves 34449 | -6/Deep Caves | Spotted as-51510 34455 | -6/Deep Caves | Destroyed as-51510 34552 | -6/Deep Caves | Triggered Deep Caves wall 34555 | -6/Deep Caves | Exposed GOLEM chamber 34572 | -6/Deep Caves | Spotted AS-32193 34585 | -6/Deep Caves | Spotted AS-15042 34587 | -6/Deep Caves | Destroyed 35 combat bots 34599 | -6/Deep Caves | Destroyed AS-32193 34629 | -6/Deep Caves | Destroyed AS-15042 34689 | -6/Deep Caves | Found Unknown Device 34721 | -6/Deep Caves | Found Unknown Device 34845 | -6/Deep Caves | Found Unknown Device 34850 | -6/Deep Caves | Destroyed 19 combat bots 34850 | -6/Deep Caves | Found Unknown Device 34855 | -6/Deep Caves | Found Unknown Device 35001 | -6/Deep Caves | Destroyed 8 combat bots 35214 | -6/Deep Caves | Entered Proximity Caves 35461 | -5/Proximity Caves | Identified GOLEM Unit (x3) 36319 | -5/Proximity Caves | Spotted B-75 Beast 36326 | -5/Proximity Caves | Destroyed B-75 Beast 36397 | -5/Proximity Caves | Learned 4 Factory zone layouts 37926 | -5/Proximity Caves | Found Prototype Launcher 37926 | -5/Proximity Caves | Identified Scatter Rocket Array 38189 | -5/Proximity Caves | Discovered exit to Factory (range 15) 38444 | -5/Proximity Caves | Entered Factory 38444 | -5/Factory | Accompanied by 2 allies 38444 | -5/Factory | Evolved 2 slots: Utility x2 38445 | -5/Factory | Identified exit to Upper Caves 38445 | -5/Factory | Identified exit to Extension 38446 | -5/Factory | Identified exit to Factory 38449 | -5/Factory | Loaded intel: 20 terminal locations 38937 | -5/Factory | Found Launcher Loader 39280 | -5/Factory | Entered Upper Caves 39672 | -5/Upper Caves | Learned Factory emergency access door positions 40375 | -5/Upper Caves | Discovered new exit (range 12) 40388 | -5/Upper Caves | Identified exit to Upper Caves 40620 | -5/Upper Caves | Entered another Upper Caves area 40637 | -5/Upper Caves | Discovered exit to Factory (range 10) 41049 | -5/Upper Caves | Learned location of 1 exit from Proximity Caves 41193 | -5/Upper Caves | Spotted B-75 Beast 41208 | -5/Upper Caves | Destroyed B-75 Beast 41238 | -5/Upper Caves | Discovered new exit (range 15) 41272 | -5/Upper Caves | Identified exit to Zhirov 41331 | -5/Upper Caves | Encountered a Warlord checkpoint 41901 | -5/Upper Caves | Entered Zhirov 41901 | -5/Zhirov | Discovered new exit (range 3) 41903 | -5/Zhirov | Identified exit to Proximity Caves 41925 | -5/Zhirov | Met Zhirov 41948 | -5/Zhirov | Learned location of Testing (-3) 41948 | -5/Zhirov | Learned location of Command (-1) 41973 | -5/Zhirov | Zhirov requested help retrieving the SGEMP Prototype 41998 | -5/Zhirov | Found Alien Artifact 41998 | -5/Zhirov | Identified Integrated Reactor 41998 | -5/Zhirov | Installed Integrated Reactor, increased core energy generation (+2%) 42057 | -5/Zhirov | Found Alien Artifact 42117 | -5/Zhirov | Entered Proximity Caves 42459 | -4/Proximity Caves | Destroyed 7 combat bots 43172 | -4/Proximity Caves | Destroyed B-86 Titan 43198 | -4/Proximity Caves | Found Unknown Protection 43198 | -4/Proximity Caves | Identified Hvy. Reflective Plating 43390 | -4/Proximity Caves | Learned 12 Research zone layouts 43760 | -4/Proximity Caves | Entered Factory 43760 | -4/Factory | Evolved 2 slots: Utility x2 44036 | -4/Factory | Found Quantum Capacitor 44044 | -4/Factory | First assault squad dispatched 44065 | -4/Factory | Incoming assault squad redirected 44237 | -4/Factory | Sucked down chute 44237 | -4/Factory | Entered Waste 44248 | -4/Waste | Spotted C-40 Crusher 44253 | -4/Waste | Destroyed C-40 Crusher 44265 | -4/Waste | Destroyed C-40 Crusher 44281 | -4/Waste | Destroyed C-40 Crusher 44306 | -4/Waste | Destroyed C-40 Crusher 44348 | -4/Waste | Destroyed C-40 Crusher 44367 | -4/Waste | Destroyed C-40 Crusher 44425 | -4/Waste | Discovered new exit (range 11) 44438 | -4/Waste | Identified exit to Factory 44574 | -4/Waste | Found Damper Plating 44720 | -4/Waste | Found Prototype Processor 44772 | -4/Waste | Warlord forces began an assault 45001 | -4/Waste | Found Prototype Reactor 45024 | -4/Waste | Entered Factory 45024 | -4/Factory | Accompanied by 16 allies 45125 | -4/Factory | Discovered new exit (range 7) 45133 | -4/Factory | Identified exit to Upper Caves 45331 | -4/Factory | Entered Upper Caves 45331 | -4/Upper Caves | Accompanied by 2 allies 45333 | -4/Upper Caves | Attracted the attention of an 0b10 checkpoint 45676 | -4/Upper Caves | Attacked by a delusional Derelict stockpiling parts 45962 | -4/Upper Caves | A Derelict revealed a hidden shortcut to "reach the base" 45962 | -4/Upper Caves | Identified exit to Warlord 45976 | -4/Upper Caves | Encountered a Warlord checkpoint 46248 | -4/Upper Caves | Discovered new exit (range 13) 46267 | -4/Upper Caves | Identified exit to Upper Caves 46423 | -4/Upper Caves | Learned Armory stockpile data 46423 | -4/Upper Caves | Learned Research garrison access intel 46791 | -4/Upper Caves | Entered another Upper Caves area 46793 | -4/Upper Caves | Attracted the attention of an 0b10 checkpoint 46796 | -4/Upper Caves | Discovered new exit (range 10) 46815 | -4/Upper Caves | Identified exit to Research 47497 | -4/Upper Caves | Destroyed B-86 Titan 47757 | -4/Upper Caves | Discovered exit to Warlord (range 5) 48608 | -4/Upper Caves | Entered Warlord 48658 | -4/Warlord | System corruption cleaned by Quarantine Array 49041 | -4/Warlord | Met Warlord 49050 | -4/Warlord | Warlord's base attacked by MAIN.C 49055 | -4/Warlord | Opened Warlord's prototype stash 49060 | -4/Warlord | Found Prototype Reactor 49071 | -4/Warlord | Found Prototype Device 49071 | -4/Warlord | Identified System Purifier 49086 | -4/Warlord | Found Prototype Hackware 49194 | -4/Warlord | Found Prototype Energy Gun 49194 | -4/Warlord | Identified Vortex Rifle 49200 | -4/Warlord | Found Prototype Energy Cannon 49200 | -4/Warlord | Identified Vortex Cannon 49204 | -4/Warlord | Found Vortex Rifle 49227 | -4/Warlord | Found Vortex Cannon 49363 | -4/Warlord | Warlord forces counterattacked 49388 | -4/Warlord | P-80 Master assimilated allied BQ-IG5(Y) 49403 | -4/Warlord | Spotted Striker 49407 | -4/Warlord | Spotted Striker 49415 | -4/Warlord | Allies destroyed Striker 49427 | -4/Warlord | Destroyed 10 combat bots 49457 | -4/Warlord | Spotted Executioner 49459 | -4/Warlord | Allies destroyed Executioner 49463 | -4/Warlord | Discovered new exit (range 14) 49477 | -4/Warlord | Destroyed 10 combat bots 49483 | -4/Warlord | Identified exit to Proximity Caves 49487 | -4/Warlord | Entered Proximity Caves 49487 | -3/Proximity Caves | Accompanied by 5 allies 49742 | -3/Proximity Caves | Destroyed B-86 Titan 50513 | -3/Proximity Caves | Discovered exit to Research (range 14) 50777 | -3/Proximity Caves | Entered Research 50777 | -3/Research | Accompanied by 4 allies 50777 | -3/Research | Evolved 2 slots: Utility x2 50778 | -3/Research | Identified exit to Research 50778 | -3/Research | Identified exit to Testing 50779 | -3/Research | Loaded intel: 4 garrison access locations 51284 | -3/Research | Identified System Mapper (x2) 51439 | -3/Research | Identified Vortex Chain Reactor 51440 | -3/Research | Identified Exp. Armor Integrity Analyzer 51520 | -3/Research | Incoming investigation squad redirected 51669 | -3/Research | Found Prototype Protection 51669 | -3/Research | Identified Centrium Heavy Armor Plating 51685 | -3/Research | Incoming investigation squad redirected 51701 | -3/Research | Repaired Gui. EMP Blaster 51858 | -3/Research | Entered Testing 52013 | -3/Testing | Fabricated Assault Drone Bay? 52330 | -3/Testing | Spotted Alpha 7 52366 | -3/Testing | Destroyed Alpha 7 52370 | -3/Testing | Spotted XC-9Y7(K) 52370 | -3/Testing | Spotted Y3-AY3(K) 52380 | -3/Testing | Found Unknown Device 52380 | -3/Testing | Identified Antimissile System 52401 | -3/Testing | Scanned by Researcher 52417 | -3/Testing | Destroyed Y3-AY3(K) 52422 | -3/Testing | Destroyed XC-9Y7(K) 52920 | -3/Testing | System corruption reached 10% 53150 | -3/Testing | First assault squad dispatched 53171 | -3/Testing | Incoming assault squad redirected 53202 | -3/Testing | Lost 5 parts (1n2u2w) 53236 | -3/Testing | Found Prototype Energy Gun 53236 | -3/Testing | Identified Hyp. EM Gauss Rifle 53315 | -3/Testing | Found Prototype Launcher 53315 | -3/Testing | Identified Hellfire Missile Launcher 53318 | -3/Testing | Found Hellfire Missile Launcher 53364 | -3/Testing | Found Prototype Energy Gun 53364 | -3/Testing | Identified Warp Gun 54011 | -3/Testing | Protovariant out of control (PP-15PG43PV7F) 54011 | -3/Testing | Unleashed a protovariant (PP-15PG43PV7F) 54082 | -3/Testing | Incoming assault squad redirected 54136 | -3/Testing | Incoming assault squad redirected 54165 | -3/Testing | Destroyed 10 combat bots 54169 | -3/Testing | Lost 12 parts (2p1n8u1w) 54292 | -3/Testing | Identified Transdimensional Reconstructor 54363 | -3/Testing | Spotted Striker 54368 | -3/Testing | Spotted Striker 54391 | -3/Testing | Destroyed Striker 54393 | -3/Testing | Destroyed Striker 54399 | -3/Testing | Spotted Alpha 7 54417 | -3/Testing | System corruption reached 30% 54461 | -3/Testing | Core integrity fell below 50% 54472 | -3/Testing | Destroyed Alpha 7 54511 | -3/Testing | Found Prototype Processor 54511 | -3/Testing | Identified Exp. Target Analyzer 54514 | -3/Testing | Found Antimissile System 54520 | -3/Testing | Found Prototype Ballistic Gun 54520 | -3/Testing | Identified Multirail 54524 | -3/Testing | Destroyed 9 combat bots 54530 | -3/Testing | Lost 17 parts (2p1n8u6w) 54604 | -3/Testing | Stole the SGEMP Prototype 54665 | -3/Testing | Core integrity fell below 20% 54778 | -3/Testing | Lost 3 parts (2u1w) 54817 | -3/Testing | Build established: Scavenger-Mutant 54874 | -3/Testing | Incoming assault squad redirected 54879 | -3/Testing | Incoming assault squad redirected 54906 | -3/Testing | Found Prototype Device 54906 | -3/Testing | Identified Exp. Thermal Shield 54926 | -3/Testing | Found Prototype Launcher 54926 | -3/Testing | Identified Com. Tesla Bomb Launcher 55065 | -3/Testing | Found Prototype Energy Cannon 55065 | -3/Testing | Identified Disintegrator 55315 | -3/Testing | Found Prototype Device 55315 | -3/Testing | Identified Exp. Focal Shield 55388 | -3/Testing | Incoming assault squad redirected 55443 | -3/Testing | Lost 3 parts (3u) 55688 | -3/Testing | Destroyed 7 combat bots 55705 | -3/Testing | Destroyed by P-80 Master with Gamma Rifle Last Messages --------------- glitched. 55698_ G-67 Veteran destroyed. 55698_ Destroyed Electrolaser. 55698_ G-67 Veteran destroyed. 55699_ U-05 Engineer lays Concrete. 55700_ System Mapper destroyed. 55700_ U-05 Engineer builds a Wall. 55700_ K-01 Serf collects debris. 55700_ System corrupted: Hellfire Missile Launcher targeting data glitched. 55700_ Destroyed Adv. Heat Sink. 55702_ The unstable cave ceiling collapses. 55702_ U-05 Engineer builds a Wall. 55703_ System corrupted: Hellfire Missile Launcher targeting data glitched. 55703_ P-80 Master destroyed. 55703_ G-67 Veteran destroyed. 55704_ The unstable cave ceiling collapses. 55704_ U-05 Engineer builds a Wall. 55704_ K-01 Serf collects debris. Map ----- +----------------------------------------------------+ | ?????????????????????????????????????????????????? | | ?????????????????????????????????????????????????? | | ?????????????????????????????????????????????????? | | ?????????????????????????????????????????????????? | | ?????????????????????????????????????????????????? | | ?????????????????????????????????????????????????? | | ?????????????????????????????????????????????????? | | ????????????????????? ""????????????????????????? | | ?????????????????? ""????????????????????????? | | ???????????????? ????????????????????????? | | ????????????? ####????????????????????? | | ??????????? #????????????????????? | | ??????????? i #????????????????????? | | ??????????*! = g #????????????????????? | | ?????????? % * #????????????????????? | | ?????????? u % =[#????????????????????? | | ?????????% ! *%!#????????????????????? | | ?????????! = %=% #????????????????????? | | ????????[! = = #????????????????????? | | ????????== /????????????????????? | | ??????|!!% #????????????????????? | | ????? *!! k +????????????????????? | | ???? ! #????????????????????? | | ????? uu #????????????????????? | | ??????????""" "" ### ###????????????????????? | | ?????????????T""" @ #????????????????????? | | ???????????????## #????????????????????? | | ################# p #????????????????????? | | / = % #????????????????????? | | ########## % #????????????????????? | | #????????# #????????????????????? | | #????????## #????????????????????? | | #?????????### #????????????????????? | | #??????????## #????????????????????? | | !== #???????????##########????????????????????? | | [ * #???????????? #?????????????????????? | | ##/###############?""" "" #?????????????????????? | | =[= #?""" "" #?????????????????????? | | = # """ T" #?????????????????????? | | % # "" #?????????????????????? | | + = "" #?????????????????????? | | ##/ ####### # #?????????????????????? | | ###???# # ! #?????????????????????? | | ##### ###########?????????????????????? | | # #????????????????????????????? | | + #????????????????????????????? | | # #????????????????????????????? | | # #????????????????????????????? | | # #+####+######????????????????????????????? | | == # ?????????????????????????????????????? | +----------------------------------------------------+ Best States ------------- Heat Dissipation 103 Coolant Potential 100 Energy Generation 65 Energy Capacity 2160 Matter Stores 550 Matter Capacity 550 Sight Range 20 Robot Scan Range 30 Terrain Scan Density 10 Jamming Range 16 Power Amplification 30 Additional Mass Support 9 Armor Coverage 1800 Resistance: KI 30 Resistance: TH 15 Resistance: EX 50 Resistance: EM 90 Core Shielding 30 Weapon Shielding 66 Point Defense Rating 240 Thermal Conversion 90 Phase Shifting 20 Evasion (%) 60 Target Analysis 12 Armor Integrity Analysis 90 Recoil Reduction 2 Matter Filtering 30 Energy Filtering 50 Particle Charging 25 Offensive Hacking 20 Item Schematics ----------------- Exp. Sensor Array | -8/Materials | Scanalyzed Combat Drone Bay | -7/Data Miner | Free Lgt. Regenerative Plating | -7/Data Miner | Free Exp. Flexi-carbon Leg | -7/Data Miner | Free Cmb. Gravmag System | -7/Data Miner | Free Exp. Terrain Scanner | -7/Data Miner | Free Tactical Coordination Suite | -7/Data Miner | Free Plasma Sword | -7/Data Miner | Free Assault Drone Bay | -5/Zhirov | Free Exp. Heat Sink | -5/Zhirov | Free Exp. Optical Array | -5/Zhirov | Free Imp. Arc Thrower | -5/Zhirov | Free Robot Schematics ------------------ S-27 Virus | -7/Data Miner | Free G-50 Soldier | -7/Data Miner | Free X-72 Disruptor | -7/Data Miner | Free H-66 Slayer | -7/Data Miner | Free I-36 Angel | -7/Data Miner | Free Fabricated ------------ Combat Drone Bay | x1 | -6/Factory Assault Drone Bay | x1 | -3/Testing Alien Tech Used ----------------- Integrated Reactor Achievements -------------- None Challenges ------------ None Game ------ Seed BeamTargetStorm Manual? 0 Play Time 08:20:21 Cumulative 1108.7 hours Start 2020.03.17 @ 18:27:32 End 2020.03.19 @ 13:59:59 Sessions 9 Manual Loads 0 Difficulty Rogue Special Mode None Game No. 383 Rogue 383 Adventurer 0 Explorer 0 Win Type - Total 250 Types 214/6/11/3/3/2/11 Lore% 99 Gallery% 100 Achievement% 93 Wizard Run 0 Options --------- ASCII 0 Keyboard 0 Movement Numpad Keybinds 0 Fullscreen 1 Font 18/Terminus Map View 76x50 Tactical HUD 1 Map Filters NONE Filters NONE Steam 1 RUN: 77fbea48-8bde-44d7-9b0e-6814ad6f3fee